[Event "*** SCC Grand Prix: Titled Tuesday Blitz"]
[Site "Chess.com"]
[Date "2020.06.23"]
[Round "4"]
[White "imdarealist"]
[Black "Djager97"]
[Result "0-1"]
[WhiteElo "2307"]
[BlackElo "2462"]
[TimeControl "180+1"]
[EndTime "10:38:24 PDT"]
[Termination "Djager97 won by resignation"]

1. d4 {[%clk 0:03:00.9]} 1... d5 {[%clk 0:03:00.1]} 2. Bf4 {[%clk 0:03:01.1]}
2... Nf6 {[%clk 0:03:00]} 3. e3 {[%clk 0:02:59.9]} 3... c5 {[%clk 0:03:00.5]} 4.
dxc5 {[%clk 0:02:57.3]} 4... Nc6 {[%clk 0:02:56.6]} 5. Bb5 {[%clk 0:02:55.5]}
5... e6 {[%clk 0:02:49.6]} 6. b4 {[%clk 0:02:51.6]} 6... Be7 {[%clk 0:02:36.1]}
7. Nf3 {[%clk 0:02:40.1]} 7... O-O {[%clk 0:02:36.4]} 8. c3 {[%clk 0:02:37.1]}
8... a5 {[%clk 0:02:35.6]} 9. Qb3 {[%clk 0:02:28.8]} 9... axb4 {[%clk 0:02:29]}
10. cxb4 {[%clk 0:02:29.7]} 10... Ne4 {[%clk 0:02:29.4]} 11. Bxc6 {[%clk
0:02:18.8]} 11... bxc6 {[%clk 0:02:28.8]} 12. Nbd2 {[%clk 0:02:14.7]} 12... Ba6
{[%clk 0:02:06.4]} 13. Nxe4 {[%clk 0:02:00.7]} 13... dxe4 {[%clk 0:02:07.3]} 14.
Rd1 {[%clk 0:01:51.7]} 14... Qc8 {[%clk 0:01:52.5]} 15. Ne5 {[%clk 0:01:48.3]}
15... Bb5 {[%clk 0:01:48.1]} 16. Qb2 {[%clk 0:01:21.7]} 16... Qa6 {[%clk
0:01:42.2]} 17. Rd2 {[%clk 0:00:57]} 17... Rfd8 {[%clk 0:01:40.7]} 18. Nd7
{[%clk 0:00:49.1]} 18... Ra7 {[%clk 0:01:14.7]} 19. Nb6 {[%clk 0:00:21.8]} 19...
Rxd2 {[%clk 0:01:13.8]} 20. Kxd2 {[%clk 0:00:22.3]} 20... Bf6 {[%clk 0:00:59.5]}
21. Be5 {[%clk 0:00:12.5]} 21... Bxe5 {[%clk 0:00:58.5]} 22. Qxe5 {[%clk
0:00:12.2]} 22... Qxa2+ {[%clk 0:00:59.1]} 23. Kc1 {[%clk 0:00:01.1]} 23... Qa1+
{[%clk 0:00:59]} 24. Qxa1 {[%clk 0:00:01.8]} 24... Rxa1+ {[%clk 0:00:59.6]} 25.
Kb2 {[%clk 0:00:02.3]} 25... Rxh1 {[%clk 0:01:00.4]} 26. Nd7 {[%clk 0:00:01.1]}
26... Rxh2 {[%clk 0:01:00]} 27. Ne5 {[%clk 0:00:02]} 0-1

[Event "*** SCC Grand Prix: Titled Tuesday Blitz"]
[Site "Chess.com"]
[Date "2020.06.23"]
[Round "4"]
[White "Sueetin"]
[Black "Joshukid"]
[Result "0-1"]
[WhiteElo "2348"]
[BlackElo "2606"]
[TimeControl "180+1"]
[EndTime "10:38:26 PDT"]
[Termination "Joshukid won by resignation"]

1. d4 {[%clk 0:03:00.9]} 1... Nf6 {[%clk 0:02:58.9]} 2. c4 {[%clk 0:03:00.7]}
2... e6 {[%clk 0:02:59.1]} 3. Nf3 {[%clk 0:03:00.4]} 3... b6 {[%clk 0:02:49.4]}
4. a3 {[%clk 0:03:00.1]} 4... Bb7 {[%clk 0:02:49.5]} 5. Nc3 {[%clk 0:02:59.8]}
5... Ne4 {[%clk 0:02:46.6]} 6. Nxe4 {[%clk 0:02:55.4]} 6... Bxe4 {[%clk
0:02:47.5]} 7. Nd2 {[%clk 0:02:55.7]} 7... Bb7 {[%clk 0:02:46.8]} 8. e4 {[%clk
0:02:48.5]} 8... d5 {[%clk 0:02:46.5]} 9. cxd5 {[%clk 0:02:47.9]} 9... exd5
{[%clk 0:02:46.1]} 10. e5 {[%clk 0:02:48.5]} 10... c5 {[%clk 0:02:46.7]} 11. Bd3
{[%clk 0:02:42.2]} 11... Nc6 {[%clk 0:02:39.5]} 12. Nf3 {[%clk 0:01:53.5]} 12...
cxd4 {[%clk 0:02:26]} 13. O-O {[%clk 0:01:49.2]} 13... Be7 {[%clk 0:02:25.4]}
14. b4 {[%clk 0:01:42.4]} 14... a6 {[%clk 0:02:20.4]} 15. Bb2 {[%clk 0:01:40]}
15... O-O {[%clk 0:02:17.3]} 16. Nxd4 {[%clk 0:01:27.6]} 16... Nxe5 {[%clk
0:02:10.3]} 17. Bxh7+ {[%clk 0:01:27.3]} 17... Kxh7 {[%clk 0:02:06.2]} 18. Qh5+
{[%clk 0:01:26.9]} 18... Kg8 {[%clk 0:02:07.1]} 19. Qxe5 {[%clk 0:01:15.3]}
19... Bf6 {[%clk 0:02:07.1]} 20. Qh5 {[%clk 0:01:09.2]} 20... Rc8 {[%clk
0:01:55.5]} 21. Rad1 {[%clk 0:01:06.4]} 21... Rc4 {[%clk 0:01:50]} 22. Rd3
{[%clk 0:01:02.4]} 22... g6 {[%clk 0:01:50.5]} 23. Qh6 {[%clk 0:00:41.1]} 23...
Bg7 {[%clk 0:01:48.1]} 24. Qxg7+ {[%clk 0:00:31.5]} 24... Kxg7 {[%clk
0:01:34.7]} 25. Ne6+ {[%clk 0:00:22.8]} 25... Kg8 {[%clk 0:01:31.9]} 26. Nxd8
{[%clk 0:00:22.9]} 26... Rxd8 {[%clk 0:01:31.9]} 27. Rfd1 {[%clk 0:00:16.6]}
27... Bc6 {[%clk 0:01:21.2]} 28. Bd4 {[%clk 0:00:16.4]} 28... Ba4 {[%clk
0:01:14.6]} 29. Rh3 {[%clk 0:00:15.2]} 29... f6 {[%clk 0:01:04.1]} 30. Rh8+
{[%clk 0:00:10.1]} 30... Kxh8 {[%clk 0:01:04.3]} 31. Bxf6+ {[%clk 0:00:09.4]}
31... Kh7 {[%clk 0:01:04.8]} 0-1

[Event "*** SCC Grand Prix: Titled Tuesday Blitz"]
[Site "Chess.com"]
[Date "2020.06.23"]
[Round "4"]
[White "124chess"]
[Black "Bayernbk"]
[Result "1-0"]
[WhiteElo "2717"]
[BlackElo "2452"]
[TimeControl "180+1"]
[EndTime "10:38:27 PDT"]
[Termination "124chess won by resignation"]

1. b3 {[%clk 0:03:00.9]} 1... d5 {[%clk 0:02:59.8]} 2. Bb2 {[%clk 0:03:01.8]}
2... c6 {[%clk 0:03:00.2]} 3. e3 {[%clk 0:03:00.4]} 3... Nf6 {[%clk 0:03:00.7]}
4. Nf3 {[%clk 0:03:00.1]} 4... Bg4 {[%clk 0:03:00.6]} 5. h3 {[%clk 0:02:59.8]}
5... Bh5 {[%clk 0:03:00.6]} 6. d3 {[%clk 0:02:53]} 6... Nbd7 {[%clk 0:03:00.2]}
7. Nbd2 {[%clk 0:02:52.6]} 7... e6 {[%clk 0:03:00.7]} 8. Be2 {[%clk 0:02:52.1]}
8... Be7 {[%clk 0:02:59.1]} 9. O-O {[%clk 0:02:43.4]} 9... O-O {[%clk
0:02:58.7]} 10. c4 {[%clk 0:02:44.1]} 10... a5 {[%clk 0:02:57.7]} 11. a3 {[%clk
0:02:44]} 11... Re8 {[%clk 0:02:50.6]} 12. Qc2 {[%clk 0:02:43.5]} 12... Bg6
{[%clk 0:02:50.2]} 13. Nh4 {[%clk 0:02:43.3]} 13... Qb6 {[%clk 0:02:41]} 14.
Nxg6 {[%clk 0:02:43]} 14... hxg6 {[%clk 0:02:41.9]} 15. Nf3 {[%clk 0:02:43.2]}
15... Bf8 {[%clk 0:02:32.3]} 16. Rab1 {[%clk 0:02:35]} 16... e5 {[%clk
0:02:24.4]} 17. Rfc1 {[%clk 0:02:33.8]} 17... a4 {[%clk 0:02:16.7]} 18. b4
{[%clk 0:02:33.4]} 18... dxc4 {[%clk 0:02:14.5]} 19. Qxc4 {[%clk 0:02:30.5]}
19... Nd5 {[%clk 0:02:08.1]} 20. Qh4 {[%clk 0:02:11.9]} 20... Be7 {[%clk
0:01:51.1]} 21. Qe4 {[%clk 0:02:05.9]} 21... N7f6 {[%clk 0:01:32.8]} 22. Qc4
{[%clk 0:02:00.2]} 22... Bd6 {[%clk 0:01:33.1]} 23. Bf1 {[%clk 0:01:56.7]} 23...
e4 {[%clk 0:01:29.2]} 24. dxe4 {[%clk 0:01:53.2]} 24... Nxe4 {[%clk 0:01:16.7]}
25. Qd4 {[%clk 0:01:48.9]} 25... Qxd4 {[%clk 0:01:15.9]} 26. Bxd4 {[%clk
0:01:49.5]} 26... Rac8 {[%clk 0:00:56.8]} 27. Bc4 {[%clk 0:01:49.4]} 27... b5
{[%clk 0:00:52.9]} 28. Bd3 {[%clk 0:01:43.2]} 28... f5 {[%clk 0:00:46.1]} 29.
Rc2 {[%clk 0:01:41.7]} 29... Ne7 {[%clk 0:00:26.2]} 30. Rbc1 {[%clk 0:01:38.9]}
30... Bb8 {[%clk 0:00:24]} 31. Bxe4 {[%clk 0:01:25.5]} 31... fxe4 {[%clk
0:00:24.9]} 32. Ng5 {[%clk 0:01:18.6]} 32... Nf5 {[%clk 0:00:24.9]} 33. Rxc6
{[%clk 0:01:17.1]} 33... Rxc6 {[%clk 0:00:25.8]} 34. Rxc6 {[%clk 0:01:17.4]}
34... Nxd4 {[%clk 0:00:23.5]} 35. exd4 {[%clk 0:01:18.3]} 35... Bf4 {[%clk
0:00:19.4]} 36. Ne6 {[%clk 0:01:18.1]} 36... Bc1 {[%clk 0:00:17]} 37. Nc7 {[%clk
0:01:15.4]} 1-0

[Event "*** SCC Grand Prix: Titled Tuesday Blitz"]
[Site "Chess.com"]
[Date "2020.06.23"]
[Round "4"]
[White "Kopytkin"]
[Black "NMZanette"]
[Result "1-0"]
[WhiteElo "2395"]
[BlackElo "2151"]
[TimeControl "180+1"]
[EndTime "10:38:27 PDT"]
[Termination "Kopytkin won by resignation"]

1. e4 {[%clk 0:03:00.9]} 1... e5 {[%clk 0:02:58.9]} 2. Nf3 {[%clk 0:02:59.4]}
2... Nc6 {[%clk 0:02:59]} 3. Bc4 {[%clk 0:02:59.9]} 3... Nf6 {[%clk 0:02:58.7]}
4. d3 {[%clk 0:03:00.3]} 4... Be7 {[%clk 0:02:57.6]} 5. Nc3 {[%clk 0:03:00.2]}
5... O-O {[%clk 0:02:57.3]} 6. h3 {[%clk 0:02:59.4]} 6... d6 {[%clk 0:02:56.5]}
7. g4 {[%clk 0:02:57.2]} 7... Na5 {[%clk 0:02:54.2]} 8. Be3 {[%clk 0:02:56.8]}
8... Nxc4 {[%clk 0:02:48.1]} 9. dxc4 {[%clk 0:02:57.7]} 9... Be6 {[%clk
0:02:48.4]} 10. Qd3 {[%clk 0:02:56.3]} 10... c6 {[%clk 0:02:41.3]} 11. O-O-O
{[%clk 0:02:55.9]} 11... Qa5 {[%clk 0:02:39.6]} 12. Kb1 {[%clk 0:02:55.5]} 12...
Rfb8 {[%clk 0:02:28.3]} 13. Bd2 {[%clk 0:02:54.4]} 13... Qa6 {[%clk 0:02:27.4]}
14. b3 {[%clk 0:02:51.2]} 14... Nd7 {[%clk 0:02:21.8]} 15. Ng5 {[%clk
0:02:37.8]} 15... Nc5 {[%clk 0:02:19.3]} 16. Qe2 {[%clk 0:02:35.8]} 16... b5
{[%clk 0:02:14.6]} 17. cxb5 {[%clk 0:02:34.9]} 17... cxb5 {[%clk 0:02:14.6]} 18.
Nd5 {[%clk 0:02:30.6]} 18... Bxd5 {[%clk 0:02:10.6]} 19. exd5 {[%clk 0:02:30.4]}
19... Qb7 {[%clk 0:01:52.5]} 20. Bc1 {[%clk 0:02:08.3]} 20... a5 {[%clk
0:01:51.4]} 21. Ne4 {[%clk 0:02:08.5]} 21... Nxe4 {[%clk 0:01:48.1]} 22. Qxe4
{[%clk 0:02:09.4]} 22... a4 {[%clk 0:01:48.5]} 23. h4 {[%clk 0:01:55.2]} 23...
Qa6 {[%clk 0:01:39.4]} 24. a3 {[%clk 0:01:52.7]} 24... axb3 {[%clk 0:01:38.9]}
25. cxb3 {[%clk 0:01:53]} 25... Rc8 {[%clk 0:01:35.1]} 26. Bb2 {[%clk
0:01:51.5]} 26... Bf8 {[%clk 0:01:24.2]} 27. h5 {[%clk 0:01:44]} 27... Rc5
{[%clk 0:01:13.5]} 28. Rc1 {[%clk 0:01:35.7]} 28... Rac8 {[%clk 0:01:13.4]} 29.
Rxc5 {[%clk 0:01:35.7]} 29... Rxc5 {[%clk 0:01:13.4]} 30. f4 {[%clk 0:01:25.5]}
30... exf4 {[%clk 0:01:11.6]} 31. h6 {[%clk 0:01:25.2]} 31... Qb7 {[%clk
0:00:38.1]} 32. Qxh7+ {[%clk 0:00:47.8]} 32... Kxh7 {[%clk 0:00:35.5]} 33. hxg7+
{[%clk 0:00:47.8]} 33... Kg6 {[%clk 0:00:31.2]} 34. g8=Q+ {[%clk 0:00:47.9]} 1-0

[Event "*** SCC Grand Prix: Titled Tuesday Blitz"]
[Site "Chess.com"]
[Date "2020.06.23"]
[Round "4"]
[White "MikeSailer"]
[Black "Susal_De_Silva"]
[Result "0-1"]
[WhiteElo "2111"]
[BlackElo "2390"]
[TimeControl "180+1"]
[EndTime "10:38:34 PDT"]
[Termination "Susal_De_Silva won by checkmate"]

1. d4 {[%clk 0:03:00.9]} 1... Nf6 {[%clk 0:02:58.8]} 2. Nf3 {[%clk 0:03:00.9]}
2... e6 {[%clk 0:02:58.9]} 3. Bf4 {[%clk 0:03:00.7]} 3... d5 {[%clk 0:02:58.9]}
4. e3 {[%clk 0:03:01.1]} 4... Bd6 {[%clk 0:02:59.4]} 5. Nbd2 {[%clk 0:03:01]}
5... O-O {[%clk 0:02:59.5]} 6. Bd3 {[%clk 0:02:59.3]} 6... c5 {[%clk 0:02:59.5]}
7. c3 {[%clk 0:02:59.9]} 7... b6 {[%clk 0:02:58.8]} 8. O-O {[%clk 0:02:59.2]}
8... Bb7 {[%clk 0:02:57.4]} 9. Ne5 {[%clk 0:02:58.2]} 9... Nc6 {[%clk
0:02:57.1]} 10. Ndf3 {[%clk 0:02:53.5]} 10... Ne7 {[%clk 0:02:55]} 11. h3 {[%clk
0:02:52.1]} 11... Ne4 {[%clk 0:02:53.6]} 12. Bxe4 {[%clk 0:02:43.2]} 12... dxe4
{[%clk 0:02:54.5]} 13. Nd2 {[%clk 0:02:43.5]} 13... cxd4 {[%clk 0:02:52.1]} 14.
cxd4 {[%clk 0:02:40.2]} 14... f6 {[%clk 0:02:49]} 15. Nec4 {[%clk 0:02:09.9]}
15... Bxf4 {[%clk 0:02:47.6]} 16. exf4 {[%clk 0:02:09.8]} 16... Qxd4 {[%clk
0:02:48.1]} 17. Qe2 {[%clk 0:02:06.7]} 17... Ng6 {[%clk 0:02:35.1]} 18. g3
{[%clk 0:01:55]} 18... e5 {[%clk 0:02:15.2]} 19. f5 {[%clk 0:01:39.8]} 19... Ne7
{[%clk 0:02:11.2]} 20. Ne3 {[%clk 0:01:38.6]} 20... Rad8 {[%clk 0:02:08.6]} 21.
Nb3 {[%clk 0:01:38.1]} 21... Qd3 {[%clk 0:02:06.9]} 22. Qg4 {[%clk 0:01:36.7]}
22... Nd5 {[%clk 0:02:02.6]} 23. Nxd5 {[%clk 0:01:17.8]} 23... Qxd5 {[%clk
0:02:03.5]} 24. Rad1 {[%clk 0:01:09.8]} 24... Qc6 {[%clk 0:01:53.2]} 25. Rc1
{[%clk 0:01:09.1]} 25... Qd5 {[%clk 0:01:49.5]} 26. Rc7 {[%clk 0:00:58.4]} 26...
Rf7 {[%clk 0:01:41.5]} 27. Rxf7 {[%clk 0:00:47.5]} 27... Kxf7 {[%clk 0:01:42.4]}
28. Rc1 {[%clk 0:00:36.9]} 28... e3 {[%clk 0:01:03]} 29. Rc7+ {[%clk 0:00:35.8]}
29... Ke8 {[%clk 0:01:01.1]} 30. f3 {[%clk 0:00:15.9]} 30... Qd1+ {[%clk
0:00:58.9]} 31. Kh2 {[%clk 0:00:12.2]} 31... Qe2+ {[%clk 0:00:58.6]} 32. Kg1
{[%clk 0:00:10.8]} 32... Rd1# {[%clk 0:00:59]} 0-1

[Event "*** SCC Grand Prix: Titled Tuesday Blitz"]
[Site "Chess.com"]
[Date "2020.06.23"]
[Round "4"]
[White "hansen"]
[Black "Karacsonyi_Gellert"]
[Result "1/2-1/2"]
[WhiteElo "2990"]
[BlackElo "2504"]
[TimeControl "180+1"]
[EndTime "10:38:36 PDT"]
[Termination "Game drawn by agreement"]

1. e4 {[%clk 0:02:56]} 1... c5 {[%clk 0:02:59.2]} 2. Nf3 {[%clk 0:02:46.4]} 2...
Nc6 {[%clk 0:02:58.9]} 3. Bb5 {[%clk 0:02:45.3]} 3... g6 {[%clk 0:02:58.3]} 4.
Bxc6 {[%clk 0:02:44.6]} 4... dxc6 {[%clk 0:02:59.2]} 5. h3 {[%clk 0:02:34.1]}
5... Bg7 {[%clk 0:02:57.1]} 6. O-O {[%clk 0:02:23.2]} 6... Nf6 {[%clk
0:02:55.1]} 7. d3 {[%clk 0:02:22.7]} 7... Nd7 {[%clk 0:02:55.4]} 8. Nc3 {[%clk
0:02:22.6]} 8... e5 {[%clk 0:02:55.7]} 9. Be3 {[%clk 0:02:22]} 9... Qe7 {[%clk
0:02:55.9]} 10. Qd2 {[%clk 0:02:21]} 10... Nf8 {[%clk 0:02:56.2]} 11. Bh6 {[%clk
0:02:19]} 11... f6 {[%clk 0:02:56.3]} 12. Bxg7 {[%clk 0:02:19.1]} 12... Qxg7
{[%clk 0:02:57.2]} 13. Ne2 {[%clk 0:02:18]} 13... Ne6 {[%clk 0:02:57.4]} 14. Nh2
{[%clk 0:02:17.1]} 14... O-O {[%clk 0:02:55.1]} 15. Qe3 {[%clk 0:02:07.3]} 15...
Bd7 {[%clk 0:02:51.5]} 16. Rae1 {[%clk 0:01:54.2]} 16... Rae8 {[%clk 0:02:50.4]}
17. a3 {[%clk 0:01:50.4]} 17... Nd4 {[%clk 0:02:45.9]} 18. Nxd4 {[%clk
0:01:43.2]} 18... cxd4 {[%clk 0:02:46.8]} 19. Qd2 {[%clk 0:01:43.9]} 19... f5
{[%clk 0:02:39.2]} 20. f4 {[%clk 0:01:34.1]} 20... exf4 {[%clk 0:02:23.4]} 21.
Rxf4 {[%clk 0:01:28.8]} 21... fxe4 {[%clk 0:02:20.2]} 22. Rexe4 {[%clk
0:01:24.9]} 22... Rxe4 {[%clk 0:02:07.9]} 23. Rxe4 {[%clk 0:01:25]} 23... Qf6
{[%clk 0:01:58.3]} 24. Nf3 {[%clk 0:01:18]} 24... Bxh3 {[%clk 0:01:48.2]} 25.
Qf2 {[%clk 0:00:55.5]} 25... Be6 {[%clk 0:01:37.6]} 26. Qxd4 {[%clk 0:00:52.4]}
26... Bd5 {[%clk 0:01:17]} 27. Qxf6 {[%clk 0:00:22.6]} 27... Rxf6 {[%clk
0:01:17.9]} 28. Re3 {[%clk 0:00:23]} 28... Bxf3 {[%clk 0:01:14.2]} 29. gxf3
{[%clk 0:00:21.5]} 29... Kf7 {[%clk 0:01:14.5]} 30. Kf2 {[%clk 0:00:21.3]} 30...
Re6 {[%clk 0:01:12.5]} 31. Re4 {[%clk 0:00:20.5]} 31... Rxe4 {[%clk 0:01:07.6]}
32. fxe4 {[%clk 0:00:20.8]} 32... h5 {[%clk 0:00:59.3]} 33. e5 {[%clk
0:00:16.9]} 33... h4 {[%clk 0:00:56.7]} 34. Kf3 {[%clk 0:00:16.4]} 34... g5
{[%clk 0:00:53.8]} 1/2-1/2

[Event "*** SCC Grand Prix: Titled Tuesday Blitz"]
[Site "Chess.com"]
[Date "2020.06.23"]
[Round "4"]
[White "iaraldinho"]
[Black "SaqoChess_Twitch"]
[Result "0-1"]
[WhiteElo "2546"]
[BlackElo "2410"]
[TimeControl "180+1"]
[EndTime "10:38:37 PDT"]
[Termination "SaqoChess_Twitch won by checkmate"]

1. e4 {[%clk 0:03:00.9]} 1... c5 {[%clk 0:02:54.9]} 2. Nf3 {[%clk 0:02:58.8]}
2... d6 {[%clk 0:02:55.1]} 3. d4 {[%clk 0:02:59.7]} 3... cxd4 {[%clk 0:02:56]}
4. Nxd4 {[%clk 0:03:00.6]} 4... Nf6 {[%clk 0:02:56.5]} 5. Nc3 {[%clk 0:03:01]}
5... g6 {[%clk 0:02:56.7]} 6. Be2 {[%clk 0:02:59.4]} 6... Bg7 {[%clk 0:02:57.1]}
7. Be3 {[%clk 0:03:00.3]} 7... O-O {[%clk 0:02:57.4]} 8. O-O {[%clk 0:03:01.2]}
8... Nc6 {[%clk 0:02:57.5]} 9. Kh1 {[%clk 0:03:01.7]} 9... d5 {[%clk 0:02:52.3]}
10. exd5 {[%clk 0:03:01.1]} 10... Nxd5 {[%clk 0:02:50.7]} 11. Nxd5 {[%clk
0:03:02]} 11... Qxd5 {[%clk 0:02:49.9]} 12. Bf3 {[%clk 0:03:02.9]} 12... Qd7
{[%clk 0:02:47.6]} 13. Nxc6 {[%clk 0:03:03.8]} 13... bxc6 {[%clk 0:02:48]} 14.
c3 {[%clk 0:03:04.3]} 14... Rb8 {[%clk 0:02:39]} 15. b3 {[%clk 0:03:00.4]} 15...
Bxc3 {[%clk 0:02:35.9]} 16. Rc1 {[%clk 0:02:59.6]} 16... Bg7 {[%clk 0:02:25.4]}
17. Bxc6 {[%clk 0:02:58]} 17... Qxd1 {[%clk 0:02:22.3]} 18. Rfxd1 {[%clk
0:02:57]} 18... Bb7 {[%clk 0:02:18.5]} 19. Bxa7 {[%clk 0:02:54.6]} 19... Ra8
{[%clk 0:02:18.4]} 20. Bxb7 {[%clk 0:02:33.6]} 20... Rxa7 {[%clk 0:02:17.3]} 21.
Rd7 {[%clk 0:02:32.2]} 21... Rxa2 {[%clk 0:02:11.1]} 22. Rxe7 {[%clk 0:02:31.5]}
22... Rxf2 {[%clk 0:02:10.4]} 23. Bd5 {[%clk 0:02:28.3]} 23... Bf6 {[%clk
0:01:55.2]} 24. Rd7 {[%clk 0:02:25.1]} 24... Bg5 {[%clk 0:01:54.6]} 25. Rb1
{[%clk 0:02:22.3]} 25... Rd8 {[%clk 0:01:53]} 26. Rxd8+ {[%clk 0:02:18.9]} 26...
Bxd8 {[%clk 0:01:53.9]} 27. b4 {[%clk 0:02:18.8]} 27... Rd2 {[%clk 0:01:46.3]}
28. Bc6 {[%clk 0:02:05.6]} 28... Bb6 {[%clk 0:01:44.6]} 29. b5 {[%clk 0:02:00]}
29... Kg7 {[%clk 0:01:44.9]} 30. g3 {[%clk 0:01:56.5]} 30... h5 {[%clk
0:01:44.8]} 31. Ra1 {[%clk 0:01:54.1]} 31... g5 {[%clk 0:01:41.8]} 32. Ra6
{[%clk 0:01:53.6]} 32... Bc5 {[%clk 0:01:40.2]} 33. b6 {[%clk 0:01:53]} 33... g4
{[%clk 0:01:31.8]} 34. h3 {[%clk 0:01:15.1]} 34... h4 {[%clk 0:00:40.4]} 35. b7
{[%clk 0:00:56.1]} 35... hxg3 {[%clk 0:00:35.5]} 36. Bg2 {[%clk 0:00:42.8]}
36... Rd1+ {[%clk 0:00:34.2]} 37. Bf1 {[%clk 0:00:42.6]} 37... Rxf1+ {[%clk
0:00:34.8]} 38. Kg2 {[%clk 0:00:41.4]} 38... Rg1# {[%clk 0:00:35.3]} 0-1

[Event "*** SCC Grand Prix: Titled Tuesday Blitz"]
[Site "Chess.com"]
[Date "2020.06.23"]
[Round "4"]
[White "Shield12"]
[Black "djano"]
[Result "1-0"]
[WhiteElo "2841"]
[BlackElo "2457"]
[TimeControl "180+1"]
[EndTime "10:38:38 PDT"]
[Termination "Shield12 won by resignation"]

1. e4 {[%clk 0:03:00.9]} 1... c5 {[%clk 0:02:59.4]} 2. Nf3 {[%clk 0:03:00.8]}
2... Nc6 {[%clk 0:02:59.6]} 3. Bb5 {[%clk 0:03:00.1]} 3... d6 {[%clk 0:02:57.1]}
4. Bxc6+ {[%clk 0:02:59.1]} 4... bxc6 {[%clk 0:02:58]} 5. O-O {[%clk 0:02:59.3]}
5... g6 {[%clk 0:02:55]} 6. e5 {[%clk 0:02:57.9]} 6... dxe5 {[%clk 0:02:40.3]}
7. Nxe5 {[%clk 0:02:56.4]} 7... Qd5 {[%clk 0:02:40.2]} 8. Re1 {[%clk 0:02:55]}
8... Bg7 {[%clk 0:02:39.2]} 9. Nc3 {[%clk 0:02:53.6]} 9... Qd6 {[%clk 0:02:37]}
10. Nc4 {[%clk 0:02:32.5]} 10... Qc7 {[%clk 0:02:33.6]} 11. Ne4 {[%clk
0:02:31.1]} 11... Nf6 {[%clk 0:02:28.8]} 12. Nxc5 {[%clk 0:02:06.1]} 12... O-O
{[%clk 0:02:27.8]} 13. h3 {[%clk 0:02:03.9]} 13... Nd5 {[%clk 0:02:11.5]} 14. d4
{[%clk 0:01:58.5]} 14... Rd8 {[%clk 0:02:03.4]} 15. c3 {[%clk 0:01:57.3]} 15...
Nb6 {[%clk 0:01:44.5]} 16. Qe2 {[%clk 0:01:48.8]} 16... e6 {[%clk 0:01:34.4]}
17. Ne5 {[%clk 0:01:46.1]} 17... Nd5 {[%clk 0:01:23.4]} 18. Nf3 {[%clk
0:01:06.7]} 18... a5 {[%clk 0:01:16.6]} 19. Bg5 {[%clk 0:01:04.9]} 19... Re8
{[%clk 0:01:15.2]} 20. Rad1 {[%clk 0:01:04.5]} 20... h6 {[%clk 0:01:09.1]} 21.
Bc1 {[%clk 0:01:04.4]} 21... a4 {[%clk 0:01:03.8]} 22. a3 {[%clk 0:01:04.5]}
22... Qb6 {[%clk 0:00:51.8]} 23. Ne5 {[%clk 0:01:03.7]} 23... Ra7 {[%clk
0:00:48.9]} 24. Qf3 {[%clk 0:01:00.3]} 24... Qc7 {[%clk 0:00:32.7]} 25. c4
{[%clk 0:00:59.2]} 25... Bxe5 {[%clk 0:00:20.5]} 26. dxe5 {[%clk 0:00:55.4]}
26... Ne7 {[%clk 0:00:18.3]} 27. Bxh6 {[%clk 0:00:53.1]} 27... Nf5 {[%clk
0:00:18.7]} 28. Bg5 {[%clk 0:00:53]} 28... Qb6 {[%clk 0:00:17.8]} 29. Ne4 {[%clk
0:00:52.9]} 29... Ba6 {[%clk 0:00:15]} 30. Nf6+ {[%clk 0:00:52.1]} 30... Kf8
{[%clk 0:00:15.5]} 31. Nxe8 {[%clk 0:00:52.1]} 31... Kxe8 {[%clk 0:00:16.4]} 32.
Rd8+ {[%clk 0:00:52.2]} 1-0

[Event "*** SCC Grand Prix: Titled Tuesday Blitz"]
[Site "Chess.com"]
[Date "2020.06.23"]
[Round "4"]
[White "youngKID"]
[Black "MrChampion_Coach"]
[Result "1-0"]
[WhiteElo "2757"]
[BlackElo "2442"]
[TimeControl "180+1"]
[EndTime "10:38:38 PDT"]
[Termination "youngKID won by resignation"]

1. e4 {[%clk 0:03:00.9]} 1... c5 {[%clk 0:02:59.3]} 2. Nf3 {[%clk 0:03:00.5]}
2... d6 {[%clk 0:02:59.3]} 3. Bb5+ {[%clk 0:02:59.7]} 3... Nd7 {[%clk
0:02:58.4]} 4. O-O {[%clk 0:02:57.8]} 4... Nf6 {[%clk 0:02:56.3]} 5. Re1 {[%clk
0:02:57.5]} 5... a6 {[%clk 0:02:56.3]} 6. Bf1 {[%clk 0:02:57.7]} 6... e5 {[%clk
0:02:55.5]} 7. c3 {[%clk 0:02:56.9]} 7... Be7 {[%clk 0:02:55.1]} 8. d4 {[%clk
0:02:57.1]} 8... O-O {[%clk 0:02:55.1]} 9. a4 {[%clk 0:02:51.9]} 9... Re8 {[%clk
0:02:39.2]} 10. Nbd2 {[%clk 0:02:46.7]} 10... exd4 {[%clk 0:02:37.6]} 11. cxd4
{[%clk 0:02:46]} 11... cxd4 {[%clk 0:02:38.5]} 12. Nxd4 {[%clk 0:02:45.9]} 12...
Nc5 {[%clk 0:02:38.5]} 13. b4 {[%clk 0:02:17.3]} 13... Ne6 {[%clk 0:02:37.9]}
14. Nf5 {[%clk 0:02:17.3]} 14... Bf8 {[%clk 0:02:26.6]} 15. Bb2 {[%clk
0:02:17.3]} 15... Ng5 {[%clk 0:02:06.1]} 16. Bd3 {[%clk 0:02:06.1]} 16... Bxf5
{[%clk 0:02:01]} 17. exf5 {[%clk 0:02:05.4]} 17... d5 {[%clk 0:01:57.5]} 18.
Rxe8 {[%clk 0:01:57.8]} 18... Nxe8 {[%clk 0:01:54]} 19. h4 {[%clk 0:01:52.3]}
19... Ne4 {[%clk 0:01:53.4]} 20. Nxe4 {[%clk 0:01:52.6]} 20... dxe4 {[%clk
0:01:53.6]} 21. Bxe4 {[%clk 0:01:53.5]} 21... Qxh4 {[%clk 0:01:52.6]} 22. Bxb7
{[%clk 0:01:38.4]} 22... Rd8 {[%clk 0:01:52.3]} 23. Qf3 {[%clk 0:01:19.8]} 23...
Qxb4 {[%clk 0:01:38.6]} 24. Bc3 {[%clk 0:01:06.9]} 24... Qc4 {[%clk 0:01:28.1]}
25. Ba5 {[%clk 0:00:53.3]} 25... Rd3 {[%clk 0:01:12.6]} 26. Qe4 {[%clk
0:00:33.3]} 26... Qc2 {[%clk 0:00:49.6]} 27. Qxe8 {[%clk 0:00:30.6]} 27... Rd1+
{[%clk 0:00:49.3]} 28. Rxd1 {[%clk 0:00:30]} 28... Qxd1+ {[%clk 0:00:50.2]} 29.
Be1 {[%clk 0:00:29.8]} 29... a5 {[%clk 0:00:44.7]} 30. Ba6 {[%clk 0:00:28.4]}
30... g6 {[%clk 0:00:43.4]} 31. Bc4 {[%clk 0:00:27.6]} 31... Kg7 {[%clk
0:00:34.1]} 32. Qxf7+ {[%clk 0:00:26]} 1-0